bitfinex/quotes_SOLUSD_20250718
["timestamp","ask_amount","ask_price","bid_price","bid_amount"]
[1752801255054,5.51785024,181.23,181.19,45.28968018]
[1752801255230,0.2043412,181.27,181.19,45.28968018]
[1752801255231,9.73402138,181.27,181.21,10.19968018]
[1752801255434,9.73402138,181.27,181.21,0.67]
[1752801255632,5.51693699,181.26,181.21,0.67]
[1752801255835,5.51693699,181.26,181.19,35.76]
[1752801255836,6.17693699,181.26,181.19,35.76]
[1752801256225,6.17693699,181.26,181.21,9.52968018]
[1752801256444,6.17693699,181.26,181.21,10.19968018]
[1752801256653,5.51693699,181.26,181.21,10.19968018]
[1752801256954,15.70661717,181.26,181.21,0.67]
[1752801257366,15.04661717,181.26,181.22,0.67]
[1752801258163,15.04661717,181.26,181.2,9.52968018]
[1752801258164,6.17693699,181.26,181.2,0.67]
[1752801258380,5.51693699,181.26,181.2,10.19968018]
[1752801258542,5.51693699,181.26,181.22,9.52968018]
[1752801258738,5.51693699,181.26,181.2,0.67]
[1752801259034,5.51693699,181.26,181.21,45.06968018]
[1752801259242,5.51693699,181.26,181.22,10.19968018]
[1752801259445,6.17693699,181.26,181.21,45.06968018]
[1752801259630,15.70661717,181.26,181.21,35.54]
[1752801259832,15.70661717,181.26,181.2,9.52968018]
[1752801260227,15.70661717,181.26,181.21,35.46]
[1752801260433,15.70661717,181.26,181.22,35.46]
[1752801260639,5.51693699,181.26,181.23,35.44]
[1752801261745,15.04661717,181.26,181.23,35.38]
[1752801262360,5.51693699,181.26,181.23,36.05]
[1752801263032,5.51693699,181.26,181.23,35.38]
[1752801263445,5.51693699,181.26,181.24,0.67]
[1752801263646,5.51693699,181.26,181.23,35.38]
[1752801264035,9.52968018,181.24,181.17,9.52968018]
[1752801264228,0.66,181.23,181.18,35.26]
[1752801264428,0.66,181.23,181.18,45.45968018]
[1752801264653,9.52968018,181.24,181.19,0.67]
[1752801264850,10.18968018,181.23,181.18,35.26]
[1752801265134,9.52968018,181.23,181.18,35.93]
[1752801265335,9.52968018,181.23,181.2,0.3]
[1752801265530,5.51815472,181.22,181.2,0.3]
[1752801265755,0.03,181.26,181.21,10.19968018]
[1752801265950,5.54693884,181.26,181.22,45.37968018]
[1752801266155,5.54693884,181.26,181.22,35.85]
[1752801266372,6.20693884,181.26,181.22,35.18]
[1752801266878,0.03,181.26,181.22,35.18]
[1752801267082,0.03,181.26,181.23,0.67]
[1752801267252,0.03,181.26,181.22,35.85]
[1752801268358,0.03,181.26,181.2,0.3]
[1752801268359,0.66,181.26,181.2,0.3]
[1752801268565,10.18968018,181.26,181.21,35.02]
[1752801268772,10.18968018,181.25,181.21,35.02]
[1752801269091,10.18968018,181.24,181.21,35.02]
[1752801269290,10.18968018,181.23,181.21,35.02]
[1752801269478,0.66,181.23,181.21,35.02]
[1752801269788,9.52968018,181.24,181.21,35.02]
[1752801269991,5.72102593,181.27,181.22,0.67]
[1752801270153,5.72102593,181.27,181.21,44.54968018]
[1752801270480,5.72102593,181.27,181.2,5.81875474]
[1752801270481,5.72109927,181.27,181.22,36.01]
[1752801270668,0.2043412,181.27,181.23,0.67]
[1752801270992,5.72098501,181.27,181.24,0.67]
[1752801271155,0.2043412,181.27,181.25,0.67]
[1752801271356,0.2043412,181.27,181.26,35.44]
[1752801271556,0.2043412,181.27,181.26,36.11]
[1752801271775,0.2043412,181.27,181.26,35.44]
[1752801272087,15.91065402,181.27,181.2,0.3]
[1752801272269,9.52968018,181.23,181.2,0.3]
[1752801272471,9.52968018,181.23,181.2,35.9]
[1752801272657,0.66,181.22,181.2,0.3]
[1752801272864,10.18968018,181.21,181.2,0.3]
[1752801273060,0.66,181.21,181.2,0.3]
[1752801273260,0.66,181.24,181.2,0.3]
[1752801273488,9.52968018,181.24,181.2,0.3]
[1752801273691,10.18968018,181.23,181.2,0.3]
[1752801273900,5.51815472,181.22,181.2,0.3]
[1752801274479,15.0478349,181.22,181.2,0.3]
[1752801274677,5.51815472,181.22,181.2,0.3]
[1752801276061,5.51785024,181.23,181.19,1.9]
[1752801276461,0.2043412,181.27,181.22,9.52968018]
[1752801276676,0.2043412,181.27,181.24,9.52968018]
[1752801276910,0.2043412,181.27,181.26,9.52968018]
[1752801277070,0.2043412,181.27,181.25,10.19968018]
[1752801277271,5.72100659,181.27,181.23,35.5]
[1752801277487,5.72100659,181.27,181.22,9.52968018]
[1752801277693,10.18968018,181.26,181.21,35.46]
[1752801277858,0.66,181.25,181.21,35.46]
[1752801278066,5.51754579,181.24,181.21,35.46]
[1752801279363,0.66,181.23,181.19,1.9]
[1752801279569,10.18968018,181.22,181.19,1.9]
[1752801279776,9.52968018,181.21,181.19,1.9]
[1752801280071,28.84535346,181.2,181.1,0.67]
[1752801280387,9.52968018,181.13,181.07,10.19968018]
[1752801280571,26.0,181.17,181.12,9.52968018]
[1752801280776,19.31567328,181.2,181.15,9.52968018]
[1752801280968,5.51815472,181.22,181.19,9.52968018]
[1752801281165,5.51815472,181.22,181.16,0.67]
[1752801281166,5.51815472,181.22,181.18,44.82968018]
[1752801281385,5.51815472,181.22,181.18,35.3]
[1752801281574,5.51815472,181.22,181.18,35.97]
[1752801281776,5.51815472,181.22,181.18,45.49968018]
[1752801281979,5.51785024,181.23,181.18,45.49968018]
[1752801282169,15.04753042,181.23,181.18,35.97]
[1752801282992,6.17785024,181.23,181.18,35.3]
[1752801283182,15.70753042,181.23,181.18,35.3]
[1752801283687,15.04753042,181.23,181.19,0.67]
[1752801283892,5.51785024,181.23,181.19,0.67]
[1752801284095,5.51785024,181.23,181.2,0.67]
[1752801284277,5.51785024,181.23,181.18,35.3]
[1752801284476,15.04753042,181.23,181.18,35.3]
[1752801284679,10.18968018,181.22,181.16,0.67]
[1752801284882,9.52968018,181.18,181.13,0.67]
[1752801285085,10.18968018,181.18,181.12,9.52968018]
[1752801285397,9.52968018,181.16,181.13,35.14]
[1752801285567,0.66,181.18,181.13,35.14]
[1752801285765,26.0,181.2,181.09,15.08175105]
[1752801285766,0.66,181.17,181.09,15.08175105]
[1752801285971,32.2174,181.2,181.11,9.52968018]
[1752801285972,9.52968018,181.18,181.11,9.52968018]
[1752801286170,9.52968018,181.18,181.1,40.68179726]
[1752801286383,9.52968018,181.16,181.12,0.67]
[1752801286580,9.52968018,181.15,181.1,35.16]
[1752801286989,9.52968018,181.15,181.1,35.83]
[1752801287176,9.52968018,181.16,181.11,0.67]
[1752801287499,10.18968018,181.16,181.1,35.16]
[1752801287674,9.52968018,181.14,181.1,35.16]
[1752801288197,9.52968018,181.12,181.09,35.14]
[1752801288382,9.52968018,181.11,181.09,35.14]
[1752801288587,9.52968018,181.12,181.09,35.14]
[1752801288779,15.05057677,181.13,181.09,35.81]
[1752801288982,5.52089659,181.13,181.1,0.67]
[1752801289293,15.05022118,181.15,181.11,0.67]
[1752801289496,5.520541,181.15,181.11,0.67]
[1752801289866,15.05022118,181.15,181.11,0.67]
[1752801290373,9.52968018,181.14,181.09,35.81]
[1752801290886,6.180541,181.15,181.09,35.81]
[1752801291266,5.520541,181.15,181.1,9.52968018]
[1752801291473,5.520541,181.15,181.1,10.19968018]
[1752801291675,5.52001722,181.16,181.11,0.67]
[1752801291972,9.52968018,181.18,181.12,0.67]
[1752801292392,21.83429301,181.24,181.13,9.52968018]
[1752801292574,9.52968018,181.21,181.14,45.31968018]
[1752801292772,0.66,181.23,181.14,45.31968018]
[1752801292773,9.52968018,181.2,181.14,35.79]
[1752801293094,9.52968018,181.19,181.14,35.79]
[1752801293393,6.17785024,181.23,181.15,10.19968018]
[1752801293603,9.52968018,181.21,181.15,10.19968018]
[1752801293799,6.17785024,181.23,181.15,0.67]
[1752801294102,9.52968018,181.21,181.15,0.67]
[1752801294468,15.04832153,181.21,181.15,10.19968018]
[1752801294665,9.52968018,181.2,181.15,0.67]
[1752801294902,5.51819776,181.22,181.15,0.67]
[1752801295205,9.52968018,181.22,181.15,6.19024445]
[1752801295575,13.99616974,181.27,181.15,6.19024445]
[1752801295576,9.52968018,181.25,181.19,9.52968018]
[1752801295776,9.52968018,181.24,181.2,35.04]
[1752801295984,9.52968018,181.23,181.2,35.04]
[1752801296198,0.71,181.22,181.2,35.04]
[1752801296495,5.51772758,181.24,181.2,35.04]
[1752801296670,5.51714399,181.26,181.2,35.74]
[1752801296871,0.9143412,181.27,181.2,35.74]
[1752801296872,9.73402138,181.27,181.21,9.52968018]
[1752801297069,9.73402138,181.27,181.21,10.22968018]
[1752801297288,9.73402138,181.27,181.21,0.7]
[1752801297491,9.52968018,181.26,181.21,0.7]
[1752801297881,10.23968018,181.26,181.21,0.7]
[1752801298083,9.52968018,181.23,181.22,35.06]
[1752801298288,10.23968018,181.23,181.22,35.06]
[1752801298688,6.22785024,181.23,181.22,35.06]
[1752801298888,15.75753042,181.23,181.22,35.06]
[1752801299493,0.71,181.23,181.22,35.06]
[1752801299696,10.23968018,181.23,181.22,35.06]
[1752801300081,9.52968018,181.24,181.22,35.06]
[1752801300284,0.71,181.25,181.22,35.06]
[1752801300822,9.52968018,181.23,181.22,35.06]
[1752801300990,10.23968018,181.23,181.12,0.7]
[1752801301304,10.23968018,181.23,181.1,7.13301115]
[1752801301305,9.52968018,181.16,181.1,9.52968018]
[1752801301504,0.71,181.17,181.13,34.92]
[1752801301711,9.52968018,181.14,181.09,7.0573]
[1752801301912,9.52968018,181.1,181.01,1.5501]
[1752801302200,9.52968018,181.05,181.04,34.92]
[1752801302390,0.71,181.05,181.04,34.92]
[1752801302713,6.23333609,181.05,181.0,34.94]
[1752801303008,9.52968018,181.04,180.97,6.22561286]
[1752801303220,9.52968018,181.03,180.98,34.92]
[1752801303428,9.52968018,180.99,180.98,34.92]
[1752801303712,9.52968018,181.0,180.98,34.92]
[1752801303924,9.52968018,181.01,180.98,35.62]
[1752801304111,9.52968018,181.01,180.98,0.7]
[1752801304295,9.52968018,181.01,180.99,34.88]
[1752801304496,5.5239463,181.03,180.99,34.88]
[1752801304714,4.3647628,181.1,180.99,34.88]
[1752801304715,10.0,181.2,181.0,10.22968018]
[1752801304916,0.71,181.14,181.06,9.52968018]
[1752801305114,0.71,181.14,181.07,34.82]
[1752801305438,9.52968018,181.08,181.03,0.65]
[1752801305595,9.52968018,181.08,181.04,34.84]
[1752801305811,9.52968018,181.1,181.04,44.36968018]
[1752801306007,9.52968018,181.09,181.04,34.84]
[1752801306229,0.71,181.12,181.04,34.84]
[1752801306409,9.52968018,181.08,181.04,34.84]
[1752801306731,5.52161874,181.11,181.04,34.84]
[1752801306907,0.71,181.1,181.01,5.52455665]
[1752801307103,9.52968018,181.07,181.02,34.78]
[1752801307308,9.52968018,181.07,181.02,35.48]
[1752801307608,9.52968018,181.06,181.03,34.76]
[1752801307914,9.52968018,181.05,181.04,34.74]
[1752801308232,0.71,181.09,181.04,33.74]
[1752801308407,9.52968018,181.06,181.04,33.74]
[1752801308606,5.52161874,181.11,181.04,34.44]
[1752801308607,6.23161874,181.11,181.04,34.44]
[1752801309038,9.52968018,181.07,181.04,34.44]
[1752801309326,6.23161874,181.11,181.05,34.72]
[1752801309526,9.52968018,181.06,181.01,0.7]
[1752801309735,9.52968018,181.06,181.02,34.7]
[1752801309945,9.52968018,181.07,181.03,0.7]
[1752801310233,9.52968018,181.06,181.02,34.7]
[1752801310529,0.71,181.1,181.02,35.4]
[1752801310705,9.52968018,181.05,181.02,35.4]
[1752801310910,9.52968018,181.04,180.99,6.22506314]
[1752801311230,9.52968018,181.02,181.0,34.66]
[1752801311414,0.71,181.04,181.0,34.66]
[1752801311620,9.52968018,181.02,181.0,34.66]
[1752801311921,0.71,181.04,181.0,34.66]
[1752801312112,9.52968018,181.01,181.0,34.66]
[1752801312312,9.52968018,181.01,180.96,0.7]
[1752801312517,9.52968018,181.01,180.95,6.145]
[1752801312518,9.52968018,181.01,181.0,34.66]
[1752801313333,9.52968018,181.02,181.0,34.66]
[1752801313638,5.5239463,181.03,181.0,34.16]
[1752801313933,5.52304684,181.06,181.01,10.22968018]
[1752801314235,9.52968018,181.03,180.99,0.7]
[1752801314411,0.71,181.05,181.0,34.6]
[1752801314614,9.52968018,181.01,181.0,34.6]
[1752801314820,9.52968018,181.01,180.98,34.6]
[1752801315126,9.52968018,181.0,180.98,34.6]
[1752801315310,46.04381206,181.03,180.97,34.58]
[1752801315311,19.33381206,181.03,180.97,34.58]
[1752801315513,9.52968018,180.99,180.97,34.58]
[1752801315725,20.04381206,181.03,180.97,34.58]
[1752801316032,9.52968018,181.0,180.97,34.58]
[1752801316242,6.2339463,181.03,180.97,34.58]
[1752801316445,6.2339463,181.03,180.94,0.03]
[1752801316446,9.52968018,180.98,180.94,0.03]
[1752801316745,15.05606868,180.95,180.94,0.03]
[1752801317113,5.5263885,180.95,180.94,0.03]
[1752801317410,15.76606868,180.95,180.94,0.03]
[1752801317714,6.2363885,180.95,180.94,0.03]
[1752801318042,29.58203994,180.95,180.9,34.52]
[1752801318271,29.58203994,180.95,180.8,6.3209]
[1752801318272,9.52968018,180.91,180.81,35.36]
[1752801318437,9.52968018,180.84,180.81,34.66]
[1752801318634,9.52968018,180.82,180.81,34.66]
[1752801318839,9.52968018,180.82,180.73,1.5152]
[1752801318840,10.23968018,180.82,180.73,1.5152]
[1752801319152,0.71,180.82,180.74,35.46]
[1752801319345,25.68221501,180.87,180.75,0.7]
[1752801319346,0.71,180.86,180.75,0.7]
[1752801319735,0.71,180.86,180.75,10.22968018]
[1752801319736,9.52968018,180.81,180.75,10.22968018]
[1752801319942,11.86013286,180.87,180.75,0.7]
[1752801319943,26.71,180.84,180.75,0.7]
[1752801320339,5.52883286,180.87,180.78,9.52968018]
[1752801320674,9.52968018,180.91,180.85,9.52968018]
[1752801320840,5.52741172,180.92,180.86,34.78]
[1752801321164,9.52968018,180.87,180.84,34.76]
[1752801321343,9.52968018,180.85,180.84,34.76]
[1752801321537,9.52968018,180.85,180.78,0.7]
[1752801321740,9.52968018,180.82,180.79,34.78]
[1752801321979,0.71,180.86,180.79,34.78]
[1752801322346,26.0,180.89,180.8,9.52968018]
[1752801322550,9.52968018,180.85,180.8,0.7]
[1752801322739,9.52968018,180.84,180.8,0.7]
[1752801323053,5.5285272,180.88,180.79,34.78]
[1752801323259,9.52968018,180.82,180.79,34.78]
[1752801323449,9.52968018,180.84,180.79,35.48]
[1752801324162,9.52968018,180.84,180.79,34.78]
[1752801324361,9.52968018,180.82,180.79,34.78]
[1752801324666,9.52968018,180.8,180.79,34.78]
[1752801324856,15.06065363,180.8,180.79,34.78]
[1752801325156,9.52968018,180.8,180.79,34.78]
[1752801325358,32.5572,180.86,180.79,34.78]
[1752801325359,6.18957198,180.85,180.79,34.78]
[1752801325662,9.52968018,180.86,180.79,35.49]
[1752801325844,5.52892943,180.87,180.79,35.49]
[1752801326168,9.52968018,180.85,180.79,35.49]
[1752801326340,0.66,180.86,180.8,34.72]
[1752801326547,9.52968018,180.83,180.8,34.72]
[1752801326741,10.18968018,180.82,180.79,34.76]
[1752801326946,5.53046521,180.82,180.79,34.76]
[1752801327157,26.0,180.87,180.8,0.71]
[1752801327364,9.52968018,180.86,180.8,0.71]
[1752801327536,9.52968018,180.85,180.8,0.71]
[1752801327743,9.52968018,180.81,180.7,10.23968018]
[1752801328050,9.52968018,180.79,180.71,0.71]
[1752801328255,26.66,180.81,180.71,0.71]
[1752801328549,9.52968018,180.77,180.71,0.71]
[1752801328754,9.52968018,180.77,180.71,10.23968018]
[1752801328959,26.0,180.81,180.7,34.72]
[1752801328960,5.53250345,180.75,180.7,34.72]
[1752801329167,9.52968018,180.74,180.7,34.72]
[1752801329367,5.53250345,180.75,180.7,34.72]
[1752801329368,9.52968018,180.72,180.7,34.72]
[1752801329560,10.18968018,180.71,180.7,34.72]
[1752801329870,0.66,180.71,180.62,0.71]
[1752801330160,6.7348,180.74,180.67,9.52968018]
[1752801330365,6.7348,180.74,180.65,0.71]
[1752801330759,9.52968018,180.71,180.65,10.23968018]
[1752801330948,15.06310204,180.72,180.66,9.52968018]
[1752801331141,0.66,180.71,180.64,44.28968018]
[1752801331348,15.06310204,180.72,180.66,9.52968018]
[1752801331549,9.52968018,180.71,180.65,10.23968018]
[1752801331757,9.52968018,180.7,180.65,0.71]
[1752801331950,15.06310204,180.72,180.66,10.23968018]
[1752801332264,9.52968018,180.67,180.66,0.06]
[1752801332466,26.0,180.69,180.66,0.06]
[1752801332658,0.66,180.74,180.68,9.52968018]
[1752801332858,5.53287267,180.74,180.7,9.52968018]
[1752801333043,0.66,180.73,180.67,9.52968018]
[1752801333240,0.66,180.73,180.66,35.65]
[1752801333440,0.66,180.73,180.67,9.52968018]
[1752801333665,10.18968018,180.73,180.67,9.52968018]
[1752801333870,0.66,180.73,180.66,45.17968018]
[1752801334043,9.52968018,180.73,180.66,35.65]
[1752801334245,5.53287267,180.74,180.69,9.52968018]
[1752801334448,0.66,180.75,180.7,10.23968018]
[1752801334687,10.18968018,180.75,180.7,0.71]
[1752801334845,10.18968018,180.75,180.66,0.06]
[1752801334846,15.72237848,180.75,180.67,35.53]
[1752801335049,9.52968018,180.74,180.67,35.53]
[1752801335247,9.52968018,180.74,180.68,9.52968018]
[1752801335651,9.52968018,180.74,180.67,34.82]
[1752801335971,0.66,180.73,180.67,34.82]
[1752801336178,26.0,180.72,180.67,34.82]
[1752801336349,0.66,180.73,180.68,9.52968018]
[1752801336550,5.532169,180.77,180.67,34.82]
[1752801336854,15.06248974,180.74,180.67,6.4387]
[1752801337064,9.52968018,180.71,180.66,0.06]
[1752801337268,42.78468397,180.63,180.62,0.3]
[1752801337473,10.18968018,180.63,180.62,0.3]
[1752801337669,10.18968018,180.63,180.6,0.2]
[1752801337967,26.0,180.58,180.53,34.82]
[1752801338174,9.52968018,180.56,180.5,9.52968018]
[1752801338468,9.52968018,180.56,180.45,1.6271]
[1752801338469,9.52968018,180.52,180.46,10.23968018]
[1752801338669,9.52968018,180.47,180.42,0.71]
[1752801338847,9.52968018,180.46,180.42,0.71]
[1752801339455,0.66,180.49,180.42,0.71]
[1752801339752,5.54082661,180.48,180.43,34.76]
[1752801339966,9.52968018,180.46,180.43,34.76]
[1752801340275,6.20082661,180.48,180.42,34.74]
[1752801340577,9.52968018,180.46,180.42,34.74]
[1752801340774,5.54053391,180.49,180.42,44.97968018]
[1752801341075,19.65680792,180.47,180.42,0.71]
[1752801341269,14.11558432,180.51,180.43,34.74]
[1752801341467,5.5382514,180.57,180.49,14.11558432]
[1752801341668,5.53787355,180.58,180.5,35.53]
[1752801341970,14.11558432,180.58,180.52,14.11558432]
[1752801342353,5.53738804,180.6,180.43,0.71]
[1752801342354,16.78468397,180.56,180.43,0.71]
[1752801342553,16.78468397,180.54,180.43,0.71]
[1752801342776,14.11558432,180.49,180.43,14.82558432]
[1752801343076,14.11558432,180.49,180.43,0.71]
[1752801343264,14.11558432,180.48,180.43,0.71]
[1752801343464,14.11558432,180.49,180.43,14.82558432]
[1752801343657,14.11558432,180.48,180.43,0.71]
[1752801344059,0.66,180.51,180.43,14.82558432]
[1752801344255,14.11558432,180.49,180.43,14.82558432]
[1752801344572,47.08619543,180.52,180.31,1.511]
[1752801344873,5.54108716,180.47,180.34,5.54508151]
[1752801345072,5.54108716,180.47,180.29,0.71]
[1752801345073,14.11558432,180.35,180.29,0.71]
[1752801345276,14.11558432,180.32,180.26,2.75228894]
[1752801345475,14.11558432,180.3,180.23,14.11558432]
[1752801345653,14.11558432,180.32,180.26,14.11558432]
[1752801345850,14.11558432,180.32,180.24,0.71]
[1752801346056,0.66,180.35,180.27,14.11558432]
[1752801346257,2.83482715,180.52,180.23,60.88]
[1752801346258,0.66,180.38,180.29,16.78468397]
[1752801346467,14.11558432,180.4,180.3,35.55]
[1752801346682,0.66,180.42,180.3,35.55]
[1752801346883,19.66024745,180.36,180.3,0.71]
[1752801347059,19.66024745,180.36,180.3,14.82558432]
[1752801347255,19.66024745,180.36,180.3,35.57]
[1752801347256,5.54466313,180.36,180.3,35.57]
[1752801347771,5.54466313,180.36,180.29,34.86]
[1752801347772,14.11558432,180.33,180.29,34.86]
[1752801347968,14.11558432,180.31,180.28,34.86]
[1752801348186,14.11558432,180.29,180.23,14.11558432]
[1752801348478,14.11558432,180.27,180.22,0.71]
[1752801348776,14.11558432,180.27,180.15,7.06165247]
[1752801348777,14.11558432,180.26,180.19,14.82558432]
[1752801348952,14.11558432,180.26,180.13,19.60147879]
[1752801348953,5.54815801,180.24,180.14,0.71]
[1752801349160,14.11558432,180.24,180.18,14.11558432]
[1752801349567,0.66,180.25,180.16,0.71]
[1752801349763,14.11558432,180.27,180.21,14.11558432]
[1752801349966,20.06993787,180.32,180.2,0.71]
[1752801350164,20.06993787,180.32,180.21,34.78]
[1752801350462,14.11558432,180.28,180.22,14.11558432]
[1752801350671,14.11558432,180.28,180.21,34.78]
[1752801350672,14.11558432,180.28,180.21,48.89558432]
[1752801350870,19.6624124,180.29,180.22,14.11558432]
[1752801351179,6.20626737,180.31,180.23,48.89558432]
[1752801351363,5.54626737,180.31,180.24,14.11558432]
[1752801351563,19.66185169,180.31,180.23,35.47]
[1752801351774,14.11558432,180.29,180.23,35.47]
[1752801352078,14.11558432,180.31,180.24,14.11558432]
[1752801352453,14.11558432,180.31,180.23,35.47]
[1752801352454,0.66,180.36,180.27,14.11558432]
[1752801352654,0.66,180.36,180.27,14.82558432]
[1752801352876,0.66,180.36,180.27,34.76]
[1752801353078,14.11558432,180.28,180.22,19.66435804]
[1752801353278,5.54477405,180.35,180.25,14.11558432]
[1752801353279,14.11558432,180.31,180.25,14.11558432]
[1752801353486,14.11558432,180.32,180.25,0.71]
[1752801353666,14.11558432,180.32,180.26,14.11558432]
[1752801353863,14.11558432,180.29,180.25,0.71]
[1752801354075,14.11558432,180.31,180.25,14.82558432]
[1752801354284,14.11558432,180.32,180.25,0.71]
[1752801354498,5.54477405,180.35,180.26,34.78]
[1752801354660,14.11558432,180.32,180.27,34.76]
[1752801354861,14.11558432,180.32,180.27,35.47]
[1752801355076,5.54447326,180.36,180.28,0.71]
[1752801355386,0.66,180.37,180.29,14.11558432]
[1752801355683,14.11558432,180.38,180.3,0.71]
[1752801355898,14.11558432,180.36,180.31,34.74]
[1752801356105,14.11558432,180.36,180.27,22.3318342]
[1752801356106,14.11558432,180.36,180.27,5.54715023]
[1752801356412,14.11558432,180.36,180.3,14.11558432]
[1752801356691,14.11558432,180.36,180.28,35.43]
[1752801357000,0.1,180.32,180.31,14.11558432]
[1752801357299,0.1,180.32,180.31,20.37158842]
[1752801357794,0.1,180.32,180.31,0.71]
[1752801359275,0.1,180.32,180.31,35.35]
[1752801359788,0.1,180.32,180.31,35.31]
[1752801360110,0.1,180.32,180.31,66.19026829]
[1752801360407,0.1,180.32,180.31,71.71627239]
[1752801360579,0.1,180.32,180.31,66.17026829]
[1752801360788,0.1,180.32,180.31,31.61026829]
[1752801360995,0.1,180.32,180.31,66.15026829]
[1752801361312,0.1,180.32,180.31,71.69627239]
[1752801361477,14.11558432,180.43,180.32,16.78468397]
[1752801361673,14.11558432,180.43,180.26,27.73768891]
[1752801361674,14.11558432,180.4,180.33,0.71]
[1752801361975,14.11558432,180.4,180.23,10.0]
[1752801361976,14.11558432,180.35,180.32,34.48]
[1752801362176,14.11558432,180.36,180.32,34.48]
[1752801362712,14.11558432,180.42,180.33,0.71]
[1752801362877,14.11558432,180.4,180.33,0.71]
[1752801363077,19.39702947,180.44,180.33,0.71]
[1752801363078,14.11558432,180.38,180.34,34.44]
[1752801363309,14.11558432,180.35,180.29,26.71]
[1752801363507,14.11558432,180.34,180.26,0.71]
[1752801363693,5.54508151,180.34,180.27,34.44]
[1752801363904,14.11558432,180.33,180.26,14.82558432]
[1752801364096,5.54508151,180.34,180.28,34.44]
[1752801364484,40.11558432,180.36,180.29,48.55558432]
[1752801364796,26.0,180.36,180.3,14.11558432]
[1752801365001,26.0,180.37,180.31,0.71]
[1752801365201,40.11558432,180.37,180.31,14.82558432]
[1752801365414,40.11558432,180.37,180.31,0.71]
[1752801365706,0.66,180.38,180.31,0.71]
[1752801365885,14.11558432,180.32,180.22,0.06]
[1752801366204,26.0,180.27,180.23,34.36]
[1752801366383,14.77558432,180.32,180.26,14.11558432]
[1752801366582,40.11558432,180.32,180.26,14.11558432]
[1752801366784,40.11558432,180.34,180.28,14.11558432]
[1752801366994,26.0,180.34,180.29,34.34]
[1752801367287,26.0,180.34,180.27,14.11558432]
[1752801367288,26.0,180.34,180.3,34.32]
[1752801367891,14.11558432,180.31,180.3,34.32]
[1752801368589,14.11558432,180.31,180.26,0.71]
[1752801368822,14.11558432,180.27,180.23,16.78468397]
[1752801369109,0.66,180.31,180.23,0.71]
[1752801369407,0.66,180.31,180.22,0.06]
[1752801369408,14.11558432,180.24,180.22,0.06]
[1752801369601,0.66,180.28,180.22,0.06]
[1752801369807,14.11558432,180.23,180.22,0.06]
[1752801369989,14.11558432,180.23,180.22,34.3]
[1752801370194,14.11558432,180.23,180.22,0.06]
[1752801370397,5.54796873,180.25,180.22,0.06]
[1752801370599,14.11558432,180.24,180.23,34.22]
[1752801370896,0.66,180.31,180.23,34.22]
[1752801370897,14.11558432,180.25,180.23,34.93]
[1752801371096,26.0,180.3,180.24,0.71]
[1752801371291,14.11558432,180.25,180.22,0.06]
[1752801371591,14.11558432,180.23,180.22,0.06]
[1752801371791,20.32405016,180.23,180.22,0.06]
[1752801372201,6.20846584,180.23,180.22,0.06]
[1752801372611,20.32405016,180.23,180.22,0.06]
[1752801373307,14.11558432,180.23,180.22,0.06]
[1752801373610,14.11558432,180.23,180.22,35.0]
[1752801373921,5.54844449,180.24,180.22,35.0]
[1752801373922,14.11558432,180.24,180.22,35.0]
[1752801374409,6.20661933,180.29,180.22,35.0]
[1752801374599,0.66,180.33,180.23,16.78468397]
[1752801374794,14.11558432,180.3,180.25,16.78468397]
[1752801375008,14.11558432,180.3,180.26,0.71]
[1752801375206,14.11558432,180.3,180.27,0.71]
[1752801375524,18.0727,180.42,180.29,16.78468397]
[1752801375525,14.11558432,180.32,180.29,16.78468397]